Cogmind - Beta 14 @@@ ROGUE MODE // 2025.03.01 @ 14:53:58 Player: mm79 Result: Self-destructed Performance ------------- Evolutions (4) 2000 Regions Visited (13) 2600 Robots Destroyed (122) 610 Value Destroyed (4603) 4603 Prototype IDs (36) 720 Alien Tech Used (0) 0 Bonus (1510) 1510 TOTAL SCORE: 12043 Bonus ------- Follower Combat Kills 210 Entered Garrisons 200 Used RIF Installer 500 Aligned with FarCom 300 Met Data Miner 300 Cogmind --------- Core Integrity 657/850 Matter 249/300 Energy 227/660 System Corruption 3% Temperature Cool (0) Movement Treading (161) Location -5/Proximity Caves Parts ------- > --- POWER (2) -------- Cooled Deuterium Engine > --- PROPULSION (4) --- Armored Treads Armored Treads Advanced Treads Improved Medium Treads > --- UTILITY (5) ------ Improved Heat Sink High-capacity Storage Unit Energy Well 0b10 Decoder Chip [Scout] Force Field > --- WEAPON (4) ------- Gauss Cannon > --- INVENTORY (20) --- Advanced Heat Sink High-capacity Matter Pod (200) Tactical Coordination Suite Medium Reactive Plating Medium Reflective Plating Force Field Improved Field Recycling Unit (180) Heavy Rocket Launcher Plasma Cutter Deploy-a-Sentry Deploy-a-Sentry Peak State ------------ > --- POWER ------------ Cooled Deuterium Engine Cooled Deuterium Engine > --- PROPULSION ------- Medium Treads Medium Treads Medium Treads Improved Medium Treads > --- UTILITY ---------- Improved Heat Sink High-capacity Storage Unit Core Analyzer Improved Shield Generator Improved Field Recycling Unit > --- WEAPON ----------- Minigun Assault Cannon Advanced Assault Cannon Bore Cannon > --- INVENTORY -------- Cooled Deuterium Engine Light Treads Armored Treads Armored Treads Advanced Treads Improved Heat Sink Energy Well High-capacity Matter Pod Medium Reactive Plating Improved Shield Generator Improved Shield Generator Hacking Suite System Restoration Module Gauss Cannon Gauss Cannon Gauss Cannon Heavy Rocket Launcher Plasma Cutter Deploy-a-Sentry Deploy-a-Sentry [Rating: 65] Favorites ----------- Power Cooled Deuterium Engine Engine Cooled Deuterium Engine Propulsion Medium Treads Treads Medium Treads Wheel Armored Huge Wheel Utility Hardened Medium Armor Plating Device Improved Heat Sink Storage High-capacity Storage Unit Processor Core Analyzer Hackware Hacking Suite Protection Hardened Medium Armor Plating Weapon Light Assault Rifle Energy Gun Heavy Laser Ballistic Gun Light Assault Rifle Ballistic Cannon Light Cannon Launcher Heavy Rocket Launcher Build | -11 -10 -10 -10 -9 -8 -8 -8 -7 -6 -6 -6 -6 -5 ------- Run | Yrd Mat Min Exi Min Mat Gar Mat Fac Fac Low Low Dat Pro Slots Evolved 8 | . . . . . 4 . . 2 2 . . . . Power 1 | . . . . . . . . . 1 . . . . Propulsion 2 | . . . . . 1 . . 1 . . . . . Utility 3 | . . . . . 2 . . 1 . . . . . Weapon 2 | . . . . . 1 . . . 1 . . . . Parts Attached 128 | 8 4 7 . . 16 2 12 31 12 11 5 . 20 Power 11 | 1 1 1 . . 1 . 3 2 1 . . . 1 Engine 11 | 1 1 1 . . 1 . 3 2 1 . . . 1 Core . | . . . . . . . . . . . . . . Reactor . | . . . . . . . . . . . . . . Propulsion 29 | 3 1 1 . . 2 2 4 7 4 . 2 . 3 Treads 24 | 1 1 . . . 1 2 3 7 4 . 2 . 3 Leg . | . . . . . . . . . . . . . . Wheel 5 | 2 . 1 . . 1 . 1 . . . . . . Hover . | . . . . . . . . . . . . . . Flight . | . . . . . . . . . . . . . . Utility 37 | 2 2 2 . . 6 . 1 14 2 5 2 . 1 Device 20 | 1 . 1 . . 2 . . 9 1 3 2 . 1 Storage 7 | 1 2 1 . . 1 . . 1 . 1 . . . Processor 2 | . . . . . . . . 1 . 1 . . . Hackware 2 | . . . . . . . . 1 1 . . . . Protection 6 | . . . . . 3 . 1 2 . . . . . Artifact . | . . . . . . . . . . . . . . Weapon 51 | 2 . 3 . . 7 . 4 8 5 6 1 . 15 Energy Gun 1 | . . . . . . . . . . . . . 1 Energy Cannon . | . . . . . . . . . . . . . . Ballistic Gun 19 | 2 . 2 . . 4 . 2 2 . . 1 . 6 Ballistic Cannon 21 | . . 1 . . 1 . 1 5 3 5 . . 5 Launcher 10 | . . . . . 2 . 1 1 2 1 . . 3 Special Weapon . | . . . . . . . . . . . . . . Impact Weapon . | . . . . . . . . . . . . . . Slashing Weapon . | . . . . . . . . . . . . . . Piercing Weapon . | . . . . . . . . . . . . . . Special Melee Weapon . | . . . . . . . . . . . . . . Unidentified Prototypes 2 | . . . . . . . 1 1 . . . . . Parts Lost 34 | . 1 4 . . 3 1 2 8 . 1 5 . 9 Power 4 | . . 1 . . 1 . . . . . . . 2 Propulsion 9 | . 1 1 . . . 1 . 1 . . 2 . 3 Utility 8 | . . . . . . . . 4 . 1 2 . 1 Weapon 13 | . . 2 . . 2 . 2 3 . . 1 . 3 Highest Loss Streak 3 | . 1 3 . . 2 1 1 3 . 1 3 . 3 To Critical Strikes 3 | . . . . . . 1 1 1 . . . . . Average Slot Usage (%) 94 | . 92 95 100 100 88 90 95 99 100 88 99 100 75 Engine 9 | . 7 13 14 14 8 9 9 7 13 13 13 13 10 Treads 22 | . 14 14 14 14 9 9 19 29 26 26 26 26 25 Wheel 3 | . 14 11 14 14 9 9 3 . . . . . . Device 11 | . 14 11 . . 5 9 9 12 18 18 12 13 13 Storage 10 | . 14 16 28 28 14 9 9 7 6 7 13 13 13 Processor 3 | . . . . . . . . 7 6 6 6 6 6 Protection 6 | . . . . . 14 18 18 8 . . . . . Ballistic Gun 11 | . 28 14 14 14 17 18 10 13 6 . 1 6 3 Ballistic Cannon 11 | . . 13 14 14 9 9 16 8 19 14 24 20 1 Peak Build Rating 65 | 7 8 8 10 10 30 31 33 50 65 64 64 64 65 Average Rating 39 | 5 6 7 9 10 26 29 31 44 62 56 62 64 48 On Entrance 31 | . 6 7 8 10 10 30 30 32 50 61 63 64 64 Naked Turns . | . . . . . . . . . . . . . . Heaviest Build 102 | 11 29 30 30 30 56 56 60 94 102 102 101 99 92 Greatest Support 106 | 16 10 20 10 10 28 28 68 96 104 104 106 106 106 Greatest Overweight (x) 3 | . 2 2 2 2 3 1 2 1 . . 1 . . Average Overweight (x) . | . . 1 2 2 1 1 . . . . . . . Largest Inventory Capacity 20 | 8 15 15 15 15 15 15 15 20 20 20 20 20 20 Average Capacity 17 | 7 10 15 15 15 15 15 15 19 20 20 20 20 20 Most Carried 20 | 8 10 15 15 15 15 15 15 20 20 20 15 13 18 Average Carried 15 | 3 8 10 14 15 14 14 14 18 19 17 13 13 14 Final Capacity 20 | 8 15 15 15 15 15 15 15 20 20 20 20 20 20 Final Carried 20 | 8 9 12 15 15 15 15 15 20 20 15 13 13 11 Class Distribution -------------------- 44% | Tank 23% | Mutant 13% | Scavenger-Skirmisher 11% | Skirmisher 4% | Scavenger-Tank Dominant Class ---------------- Mutant | -10/Materials Mutant | -10/Mines Mutant | -10/Exiles Mutant | -9/Mines Tank | -8/Materials Tank | -8/Garrison Tank | -8/Materials Scavenger-Skirmisher | -7/Factory Skirmisher | -6/Factory Tank | -6/Lower Caves Tank | -6/Lower Caves Tank | -6/Data Miner Mutant | -5/Proximity Caves Resources | -11 -10 -10 -10 -9 -8 -8 -8 -7 -6 -6 -6 -6 -5 ----------- Run | Yrd Mat Min Exi Min Mat Gar Mat Fac Fac Low Low Dat Pro Matter Collected 4714 | 340 239 226 65 . 754 134 405 901 95 481 409 . 665 Remotely . | . . . . . . . . . . . . . . Salvage Created 4242 | 113 286 78 . . 746 152 251 994 83 372 226 . 941 Parts 222 | 9 18 6 . . 42 12 17 56 7 17 6 . 32 Haulers Intercepted 5 | . . . . . 3 . 1 1 . . . . . Recyclers Shooed 2 | . . 1 . . . . . 1 . . . . . Parts Field Recycled 14 | . . . . . . . . 7 7 . . . . Retrieved Matter 394 | . . . . . . . . 124 270 . . . . Parts Self-Destructed 57 | . . . . . . . . . . 21 8 . 28 Prevented . | . . . . . . . . . . . . . . Kills | -11 -10 -10 -10 -9 -8 -8 -8 -7 -6 -6 -6 -6 -5 ------- Run | Yrd Mat Min Exi Min Mat Gar Mat Fac Fac Low Low Dat Pro Combat Hostiles Destroyed 105 | . 8 4 . . 16 3 12 20 2 14 6 . 20 Melee 1 | . . . . . . . . . . . . . 1 Guns 41 | . 8 1 . . 6 2 3 14 . 2 . . 5 Cannons 40 | . . 3 . . 4 1 6 6 2 5 6 . 7 AOE 23 | . . . . . 6 . 3 . . 7 . . 7 Classes Destroyed 15 | 2 2 1 . . 3 1 . 4 . . 1 . 1 Worker 8 | . . 1 . . 2 . . 5 . . . . . Builder 1 | . . . . . . . . 1 . . . . . Tunneler 2 | 2 . . . . . . . . . . . . . Hauler 5 | . . . . . 3 . 1 1 . . . . . Recycler 1 | 1 . . . . . . . . . . . . . Drone 1 | . . . . . . . . . . . . . 1 Swarmer 19 | . 2 2 . . 3 . 7 1 . 3 . . 1 Grunt 51 | . 6 2 . . 8 . 2 9 . 6 5 . 13 Brawler 4 | . . . . . . . . 2 . 1 . . 1 Duelist 5 | . . . . . . . . 1 . 2 . . 2 Sentry 15 | . . . . . 4 2 3 3 1 1 . . 1 Specialist 1 | . . . . . . 1 . . . . . . . Hunter 4 | . . . . . 1 . . 2 . . . . 1 Programmer 4 | . . . . . . . . 2 1 1 . . . Behemoth 1 | . . . . . . . . . . . 1 . . Best Kill Streak 10 | 3 4 2 . . 6 2 3 9 2 10 4 . 8 Combat Bots Only 10 | . 4 2 . . 5 2 3 4 2 10 4 . 8 Max Kills in Single Turn 4 | 1 1 1 . . 3 1 3 1 1 4 2 . 3 Gunslinging . | . . . . . . . . . . . . . . Exploded 4 | . . . . . 3 . 3 . . 4 . . 3 Melee 1 | . . . . . . . . . . . . . 1 Uniques/NPCs Destroyed . | . . . . . . . . . . . . . . Combat | -11 -10 -10 -10 -9 -8 -8 -8 -7 -6 -6 -6 -6 -5 -------- Run | Yrd Mat Min Exi Min Mat Gar Mat Fac Fac Low Low Dat Pro Hostile Shots Fired 755 | . 53 58 . . 57 24 69 223 17 44 98 . 112 Missed 198 | . 15 12 . . 15 5 11 69 5 10 31 . 25 Damage Taken 6344 | . 417 460 . . 553 216 517 1711 79 606 660 . 1125 Core 525 | . 47 69 . . 52 25 15 124 14 77 44 . 58 Absorbed by Shields 1578 | . . . . . 40 76 228 186 34 199 229 . 586 Ignored by Resistances 92 | . . . . . . . . 92 . . . . . Core Remaining (%) 79 | 100 . . . 53 . . 83 82 . . . . . Volleys Fired 343 | 15 44 24 . . 51 13 41 87 6 17 14 . 31 Largest 4 | 2 2 2 . . 3 3 3 3 4 4 4 . 4 Hottest 201 | 40 40 55 . . 78 78 97 97 174 201 201 . 171 Shots Fired 842 | 30 88 46 . . 130 36 92 202 18 55 56 . 89 Gun 509 | 30 88 28 . . 90 25 49 137 4 8 2 . 48 Cannon 314 | . . 18 . . 37 11 42 64 12 42 54 . 34 Launcher 19 | . . . . . 3 . 1 1 2 5 . . 7 Special . | . . . . . . . . . . . . . . Kinetic 823 | 30 88 46 . . 127 36 91 201 16 50 56 . 82 Thermal . | . . . . . . . . . . . . . . Explosive 19 | . . . . . 3 . 1 1 2 5 . . 7 Electromagnetic . | . . . . . . . . . . . . . . Robot Hit Streak 21 | 3 7 8 . . 15 6 9 21 5 6 12 . 11 Robot Miss Streak 4 | 3 3 4 . . 4 3 4 3 1 4 3 . 3 Penetration Max 2 | . . . . . . . . 1 . . 1 . 2 Secondary Targets . | . . . . . . . . . . . . . . Shots Hit Robots 530 | 14 61 27 . . 90 23 59 139 9 24 32 . 52 Core Hits 256 | 7 18 6 . . 43 6 21 60 4 31 12 . 48 Critical Kills 7 | . . . . . . . . . . 1 1 . 5 Critical Parts Destroyed 11 | . 1 . . . . . . 2 . 1 2 . 5 Critical Strikes 27 | . 1 . . . 1 . 1 2 . 4 6 . 12 Destroy 19 | . 1 . . . . . 1 2 . 2 3 . 10 Blast 8 | . . . . . 1 . . . . 2 3 . 2 Melee Attacks . | . . . . . . . . . . . . . . Impact . | . . . . . . . . . . . . . . Slashing . | . . . . . . . . . . . . . . Piercing . | . . . . . . . . . . . . . . Sneak Attacks . | . . . . . . . . . . . . . . Combat Hostiles . | . . . . . . . . . . . . . . Follow-up Attacks . | . . . . . . . . . . . . . . Damage Inflicted 11822 | 177 619 379 . . 1550 341 1191 2604 251 1524 896 . 2290 Guns 4722 | 177 619 149 . . 762 238 425 1553 80 103 18 . 598 Cannons 4315 | . . 230 . . 424 103 572 909 171 453 878 . 575 Explosions 2705 | . . . . . 364 . 181 98 . 968 . . 1094 Melee . | . . . . . . . . . . . . . . Ramming 80 | . . . . . . . 13 44 . . . . 23 Kinetic 9037 | 177 619 379 . . 1186 341 997 2462 251 556 896 . 1173 Thermal . | . . . . . . . . . . . . . . Explosive 2705 | . . . . . 364 . 181 98 . 968 . . 1094 Electromagnetic . | . . . . . . . . . . . . . . Impact . | . . . . . . . . . . . . . . Slashing . | . . . . . . . . . . . . . . Piercing . | . . . . . . . . . . . . . . Highest Corruption 6 | . 2 2 2 2 . . 2 6 2 2 2 2 2 Average Corruption 2 | . 2 2 2 2 . . 2 2 2 1 2 2 2 Corruption Purged 12 | . . . . . . . . 10 . 2 . . . Corruption Blocked . | . . . . . . . . . . . . . . Effects 76 | . 1 5 2 2 . . 7 14 4 13 16 2 10 Message Errors 19 | . . 2 . . . . 5 3 . 2 4 . 3 Matter Fused 19 | . . . 1 1 . . . 4 4 4 3 1 1 Heat Flow Errors 10 | . 1 . 1 . . . . 2 . 1 1 . 4 Energy Discharges 6 | . . 1 . . . . . . . 2 2 . 1 Parts Fused 1 | . . . . . . . . . . 1 . . . Data Loss (minor) 9 | . . . . . . . 2 . . 1 4 1 1 Data Loss (major) 5 | . . 1 . 1 . . . 1 . . 2 . . Misfires 4 | . . . . . . . . 2 . 2 . . . Alerts 1 | . . . . . . . . 1 . . . . . Weapon Failures 2 | . . 1 . . . . . 1 . . . . . Overload Shots . | . . . . . . . . . . . . . . Overflow Damage 80 | . . . . . 16 . 18 . 21 . . . 25 Projectiles 43 | . . . . . . . . . 21 . . . 22 Explosions 37 | . . . . . 16 . 18 . . . . . 3 Melee . | . . . . . . . . . . . . . . Knockbacks 32 | . . 3 . . . . 4 10 . 2 4 . 9 Impact . | . . . . . . . . . . . . . . Kinetic 28 | . . 3 . . . . 3 10 . 2 3 . 7 Secondary 4 | . . . . . . . 1 . . . 1 . 2 Self-Inflicted Damage 159 | . . . . . . . . 41 . 47 . . 71 Shots 4 | . . . . . . . . 1 . 1 . . 2 Rammed 8 | . . . . . . . 2 5 . . . . 1 Targets Rammed 10 | . . . . . . . 2 6 . . . . 2 Kicked . | . . . . . . . . . . . . . . Crushed 2 | . . . . . . . . 1 . . . . 1 Highest Temperature 510 | . 230 65 94 . 78 265 272 261 117 280 510 . 254 Average Temperature 96 | . 30 22 56 . 27 158 100 107 54 129 185 . 54 Received Heat Transfer 1745 | . 186 159 . . 207 81 159 381 8 129 168 . 267 Effects 11 | . . . . . . . 2 7 . . 2 . . Energy Bleed 2 | . . . . . . . 1 1 . . . . . Interference 7 | . . . . . . . 1 6 . . . . . Damage (minor) 2 | . . . . . . . . . . . 2 . . Siege Activations . | . . . . . . . . . . . . . . Robots Corrupted . | . . . . . . . . . . . . . . Combat Hostiles . | . . . . . . . . . . . . . . Parts Fried . | . . . . . . . . . . . . . . Impact Corruptions . | . . . . . . . . . . . . . . Robots Melted . | . . . . . . . . . . . . . . Combat Hostiles . | . . . . . . . . . . . . . . Parts Melted . | . . . . . . . . . . . . . . Heat Transferred . | . . . . . . . . . . . . . . Parts Sabotaged . | . . . . . . . . . . . . . . Parts Stolen . | . . . . . . . . . . . . . . Parts Stripped . | . . . . . . . . . . . . . . Power Chain Reactions . | . . . . . . . . . . . . . . Alert | -11 -10 -10 -10 -9 -8 -8 -8 -7 -6 -6 -6 -6 -5 ------- Run | Yrd Mat Min Exi Min Mat Gar Mat Fac Fac Low Low Dat Pro Peak Influence 314 | 15 314 132 . . 229 165 264 232 128 . . . . Initial 115 | . 9 62 . . . 115 79 29 112 . . . . Average 106 | 7 120 91 . . 109 147 152 95 79 . . . . Maximum Alert Level 1 | . 1 . . . 1 . 1 1 . . . . . Low Security (%) 87 | 100 88 100 . 100 80 100 79 87 100 . . . . Level 1 12 | . 11 . . . 19 . 20 12 . . . . . Level 2 . | . . . . . . . . . . . . . . Level 3 . | . . . . . . . . . . . . . . Level 4 . | . . . . . . . . . . . . . . Level 5 . | . . . . . . . . . . . . . . High Security . | . . . . . . . . . . . . . . Max Security . | . . . . . . . . . . . . . . Squads Dispatched 20 | . 3 . . . 5 . 1 8 2 . . . 1 Investigation 7 | . 1 . . . 2 . . 4 . . . . . Extermination 3 | . . . . . . . . 1 2 . . . . Reinforcement 6 | . 2 . . . 3 . 1 . . . . . . Assault 1 | . . . . . . . . . . . . . 1 Garrison 3 | . . . . . . . . 3 . . . . . Intercept . | . . . . . . . . . . . . . . Searches Triggered . | . . . . . . . . . . . . . . Construction Impeded 1 | . . . . . 1 . . . . . . . . Haulers Reinforced . | . . . . . . . . . . . . . . Active Scanning Responses . | . . . . . . . . . . . . . . Cargo Convoy Interrupts . | . . . . . . . . . . . . . . Stealth | -11 -10 -10 -10 -9 -8 -8 -8 -7 -6 -6 -6 -6 -5 --------- Run | Yrd Mat Min Exi Min Mat Gar Mat Fac Fac Low Low Dat Pro Distress Signals 16 | . 1 . . . 7 . 2 4 . . . . 2 Communications Jammed . | . . . . . . . . . . . . . . Distress Signals . | . . . . . . . . . . . . . . Times Spotted 154 | . 15 5 . . 24 3 21 28 2 12 7 . 37 Peak Tracking Total 9 | . 4 3 . . 7 3 4 4 2 9 5 . 7 Tactical Retreats 12 | . 1 . . . 2 . 1 2 . . 1 . 5 Traps | -11 -10 -10 -10 -9 -8 -8 -8 -7 -6 -6 -6 -6 -5 ------- Run | Yrd Mat Min Exi Min Mat Gar Mat Fac Fac Low Low Dat Pro Traps Triggered 11 | . 3 . . . 1 2 1 4 . . . . . Indirectly . | . . . . . . . . . . . . . . Trap Hack Attempts . | . . . . . . . . . . . . . . Triggered . | . . . . . . . . . . . . . . Disarmed . | . . . . . . . . . . . . . . Reprogrammed . | . . . . . . . . . . . . . . Reused . | . . . . . . . . . . . . . . Traps Extracted . | . . . . . . . . . . . . . . Installed 1 | . . 1 . . . . . . . . . . . Triggered 2 | . . . . . . . . . . . 2 . . Most Traps Carried 4 | . . 4 4 4 4 . . . . . . . . Machines | -11 -10 -10 -10 -9 -8 -8 -8 -7 -6 -6 -6 -6 -5 ---------- Run | Yrd Mat Min Exi Min Mat Gar Mat Fac Fac Low Low Dat Pro Machines Disabled 5 | . . 1 . . . . 1 . . 2 . . 1 Max in Single Turn 1 | . . 1 . . . . 1 . . 1 . . 1 Garrison Access 5 | . . . . . . . 1 4 . . . . . Machines Repaired . | . . . . . . . . . . . . . . Machines Dismantled . | . . . . . . . . . . . . . . Machines Sabotaged . | . . . . . . . . . . . . . . Overloaded Fab Kills . | . . . . . . . . . . . . . . Hacking | -11 -10 -10 -10 -9 -8 -8 -8 -7 -6 -6 -6 -6 -5 --------- Run | Yrd Mat Min Exi Min Mat Gar Mat Fac Fac Low Low Dat Pro Machines Accessed 51 | . 9 . 1 . 9 1 10 16 2 . 1 2 . Terminals 32 | . 7 . . . 7 1 6 9 1 . 1 . . Fabricators 3 | . . . . . . . . 2 1 . . . . Repair Stations . | . . . . . . . . . . . . . . Recycling Units 6 | . 2 . . . 1 . 2 1 . . . . . Scanalyzers 1 | . . . . . . . 1 . . . . . . Garrison Access 6 | . . . . . 1 . 1 4 . . . . . Total Hacks 148 | . 24 . 1 . 34 2 32 32 4 . 1 18 . Successful 83 | . 13 . 1 . 19 . 20 10 1 . 1 18 . Failed 65 | . 11 . . . 15 2 12 22 3 . . . . Catastrophic 13 | . 2 . . . 3 1 . 6 1 . . . . Database Lockouts . | . . . . . . . . . . . . . . Manual 86 | . 20 . 1 . 20 . 20 22 3 . . . . Terminals 98 | . 20 . . . 28 2 24 20 3 . 1 . . Fabricators 6 | . . . . . . . . 5 1 . . . . Repair Stations . | . . . . . . . . . . . . . . Recycling Units 16 | . 4 . . . 5 . 4 3 . . . . . Scanalyzers 3 | . . . . . . . 3 . . . . . . Garrison Access 6 | . . . . . 1 . 1 4 . . . . . Terminal Hacks 36 | . 3 . 1 . 8 . 5 . . . 1 18 . Record 2 | . . . . . 1 . . . . . 1 . . Part Schematic 9 | . . . . . . . . . . . . 9 . Robot Schematic 6 | . . . . . . . . . . . . 6 . Robot Analysis 2 | . . . . . 1 . 1 . . . . . . Prototype ID Bank 3 | . . . . . . . . . . . . 3 . Branch Access Points 1 | . . . . . 1 . . . . . . . . Terminal Index 3 | . 1 . . . 1 . 1 . . . . . . Unreport Threat 1 | . . . . . 1 . . . . . . . . Locate Traps 6 | . 2 . . . 2 . 2 . . . . . . Hauler Manifests 1 | . . . . . 1 . . . . . . . . Zone Layout 1 | . . . . . . . 1 . . . . . . Derelict Proto ID Bank 1 | . . . 1 . . . . . . . . . . Fabricator Hacks 2 | . . . . . . . . 1 1 . . . . Network Status 2 | . . . . . . . . 1 1 . . . . Repair Station Hacks . | . . . . . . . . . . . . . . Recycling Unit Hacks 6 | . 2 . . . 1 . 2 1 . . . . . Report Inventory 5 | . 2 . . . . . 2 1 . . . . . Retrieve Components 1 | . . . . . 1 . . . . . . . . Scanalyzer 3 | . . . . . . . 3 . . . . . . Insert Component 2 | . . . . . . . 2 . . . . . . Analyze 1 | . . . . . . . 1 . . . . . . Garrison Access Hacks 6 | . . . . . 1 . 1 4 . . . . . Unlock Access 1 | . . . . . 1 . . . . . . . . Seal Access 5 | . . . . . . . 1 4 . . . . . Unauthorized Hacks 30 | . 8 . . . 9 . 9 4 . . . . . Terminals 25 | . 6 . . . 8 . 7 4 . . . . . Botnet 6 | . 1 . . . 2 . 2 1 . . . . . Skim 19 | . 5 . . . 6 . 5 3 . . . . . Fabricators . | . . . . . . . . . . . . . . Repair Stations . | . . . . . . . . . . . . . . Recycling Units 5 | . 2 . . . 1 . 2 . . . . . . Reject 5 | . 2 . . . 1 . 2 . . . . . . Scanalyzers . | . . . . . . . . . . . . . . Garrison Access . | . . . . . . . . . . . . . . Data Cores Recovered . | . . . . . . . . . . . . . . Used . | . . . . . . . . . . . . . . Hacking Detections 40 | . 8 . . . 9 1 8 12 2 . . . . Full Trace Events 4 | . . . . . 1 . . 3 . . . . . Feedback Events . | . . . . . . . . . . . . . . Feedback Blocked . | . . . . . . . . . . . . . . Robot Schematics Acquired 6 | . . . . . . . . . . . . 6 . Robots Built . | . . . . . . . . . . . . . . Authchips . | . . . . . . . . . . . . . . Time . | . . . . . . . . . . . . . . Total Robot Build Rating . | . . . . . . . . . . . . . . Part Schematics Acquired 10 | . . . . . . . 1 . . . . 9 . Parts Built . | . . . . . . . . . . . . . . Authchips . | . . . . . . . . . . . . . . Time . | . . . . . . . . . . . . . . Total Part Build Rating . | . . . . . . . . . . . . . . Parts Repaired . | . . . . . . . . . . . . . . Time . | . . . . . . . . . . . . . . Parts Recycled . | . . . . . . . . . . . . . . Recycled Matter . | . . . . . . . . . . . . . . Retrieved Matter . | . . . . . . . . . . . . . . Retrieved Components 5 | . . . . . 5 . . . . . . . . Parts Scanalyzed 1 | . . . . . . . 1 . . . . . . Part Schematics Acquired 1 | . . . . . . . 1 . . . . . . Parts Damaged . | . . . . . . . . . . . . . . Bothacking | -11 -10 -10 -10 -9 -8 -8 -8 -7 -6 -6 -6 -6 -5 ------------ Run | Yrd Mat Min Exi Min Mat Gar Mat Fac Fac Low Low Dat Pro Used RIF Installer 1 | . . . . . . 1 . . . . . . . Robots Hacked . | . . . . . . . . . . . . . . Non-combat . | . . . . . . . . . . . . . . Combat . | . . . . . . . . . . . . . . Robot Hacks Applied . | . . . . . . . . . . . . . . Relay Couplers Released . | . . . . . . . . . . . . . . Fabnet Peak Effective % . | . . . . . . . . . . . . . . Robots Rewired . | . . . . . . . . . . . . . . Allies Hacked . | . . . . . . . . . . . . . . Hacks Repelled . | . . . . . . . . . . . . . . Allies | -11 -10 -10 -10 -9 -8 -8 -8 -7 -6 -6 -6 -6 -5 -------- Run | Yrd Mat Min Exi Min Mat Gar Mat Fac Fac Low Low Dat Pro Total Allies . | . . . . . . . . . . . . . . Largest Group . | . . . . . . . . . . . . . . Highest-Rated Group . | . . . . . . . . . . . . . . Highest-Rated Ally . | . . . . . . . . . . . . . . Total Orders 7 | . . . . . . . . . . 7 . . . EXPLORE 4 | . . . . . . . . . . 4 . . . RETURN 3 | . . . . . . . . . . 3 . . . Ally Attacks 9 | . . . . . 9 . . . . . . . . Total Damage 471 | . . . . . 471 . . . . . . . . Kills 6 | . . . . . 6 . . . . . . . . Allies Corrupted . | . . . . . . . . . . . . . . Allies Melted . | . . . . . . . . . . . . . . Turrets Deployed 1 | . . . . . 1 . . . . . . . . Intel | -11 -10 -10 -10 -9 -8 -8 -8 -7 -6 -6 -6 -6 -5 ------- Run | Yrd Mat Min Exi Min Mat Gar Mat Fac Fac Low Low Dat Pro Robot Analysis Total 2 | . . . . . 1 . 1 . . . . . . Derelict Logs Recovered 5 | . . 3 . . . . . . . 1 1 . . Drone Launches 4 | . . . . . . . . . . 4 . . . Drone Recoveries 2 | . . . . . . . . . . 2 . . . Exploration | -11 -10 -10 -10 -9 -8 -8 -8 -7 -6 -6 -6 -6 -5 ------------- Run | Yrd Mat Min Exi Min Mat Gar Mat Fac Fac Low Low Dat Pro Turns Passed 10853 | 113 581 432 261 108 1266 231 1314 3094 777 1111 699 122 744 Spaces Moved 6003 | 60 435 280 231 91 762 126 599 1479 448 649 389 77 377 Core 11 | 11 . . . . . . . . . . . . . Treads 3791 | . . 26 . . . . 346 1479 448 649 389 77 377 Legs . | . . . . . . . . . . . . . . Wheels 2201 | 49 435 254 231 91 762 126 253 . . . . . . Hover . | . . . . . . . . . . . . . . Flight . | . . . . . . . . . . . . . . Fastest Speed 50 | 50 80 110 110 110 115 115 115 162 160 160 160 160 160 Average Speed 143 | 86 91 122 110 110 115 115 148 163 161 160 160 160 162 Slowest Speed 245 | 100 110 240 110 110 125 115 166 245 162 160 240 160 165 Overloaded Moves . | . . . . . . . . . . . . . . Propulsion Burnouts . | . . . . . . . . . . . . . . Robots Hopped 3 | . . . . . 3 . . . . . . . . Cave-ins Triggered . | . . . . . . . . . . . . . . Exploration Rate (%) 51 | 4 83 57 60 28 58 32 56 49 8 88 63 68 68 Regions Visited 13 Branch Regions 7 Pre-discovered Areas 4 | . . . . . 3 . 1 . . . . . . Known Exits Taken 5 | . . 1 . . 1 . 1 1 . 1 . . . Unknown Exits Taken 7 | 1 1 . 1 1 . . . . 1 . 1 1 . Scrap Searched 12 | . . 2 . . . . . . . 3 2 . 5 Spaces Dug 61 | . . . . . . . 14 12 15 20 . . . Terrain Destroyed 218 | . . . . . 34 . 14 16 18 61 15 . 60 Melee . | . . . . . . . . . . . . . . Projectile 46 | . . . . . . . . 5 3 15 15 . 8 AOE 172 | . . . . . 34 . 14 11 15 46 . . 52 Terrain Rammed . | . . . . . . . . . . . . . . Walls Destroyed . | . . . . . . . . . . . . . . Machines Disabled . | . . . . . . . . . . . . . . Actions | -11 -10 -10 -10 -9 -8 -8 -8 -7 -6 -6 -6 -6 -5 --------- Run | Yrd Mat Min Exi Min Mat Gar Mat Fac Fac Low Low Dat Pro Total 7627 | 92 541 328 239 99 1050 186 949 2008 491 690 428 76 450 Wait 943 | . 46 4 . 9 185 23 279 355 17 4 18 . 3 Move 5984 | 59 434 279 230 90 755 125 598 1478 447 648 388 76 377 Hop 3 | . . . . . 3 . . . . . . . . Pick Up 107 | 8 7 10 6 . 20 4 8 32 4 1 3 . 4 Fast Attach 24 | 6 . . . . 5 . 4 5 1 2 . . 1 Attach 66 | 2 2 5 . . 8 1 4 13 3 6 5 . 17 Detach 17 | 2 . . . . . . . . 1 2 . . 12 Swap 38 | . 2 2 . . 3 1 4 13 8 3 . . 2 Drop 75 | . 6 3 3 . 20 3 9 19 4 7 . . 1 Fire 343 | 15 44 24 . . 51 13 41 87 6 17 14 . 31 Melee . | . . . . . . . . . . . . . . Ram . | . . . . . . . . . . . . . . Kick . | . . . . . . . . . . . . . . Crush 10 | . . . . . . . 2 6 . . . . 2 Escape Stasis 16 | . . . . . . 16 . . . . . . . Rewire . | . . . . . . . . . . . . . . Trap 1 | . . 1 . . . . . . . . . . . Miscellaneous . | . . . . . . . . . . . . . . Route ------- -11/Scrapyard -10/Materials (discovered 4 exits: [*Mat x2] / [*Min x2]) -10/Mines (discovered 4 exits: [*Mat x2] / *Exi / Sub) -10/Exiles -9/Mines -8/Materials (discovered 4 exits: *Fac x3 / Gar) -8/Garrison -8/Materials (discovered 3 exits: *Fac x3) -7/Factory (discovered 6 exits: *Fac x4 / *Low x2) -6/Factory -6/Lower Caves -6/Lower Caves -6/Data Miner -5/Proximity Caves History --------- Turn | Location | Event 41 | -11/Scrapyard | Discovered new exit (range 15) 114 | -11/Scrapyard | Entered Materials 191 | -10/Materials | Discovered new exit (range 15) 315 | -10/Materials | Build established: Mutant 366 | -10/Materials | Discovered new exit (range 11) 487 | -10/Materials | Discovered new exit (range 14) 668 | -10/Materials | Discovered new exit (range 16) 695 | -10/Materials | Entered Mines 741 | -10/Mines | Lost 3 parts (1p2w) 758 | -10/Mines | Discovered new exit (range 11) 782 | -10/Mines | Identified exit to Subcaves 789 | -10/Mines | Identified exit to Exiles 796 | -10/Mines | A weapon hastily lodged in a ceiling crevice suddenly fell to the ground 849 | -10/Mines | Received a Rocket Launcher from a helpful Derelict 913 | -10/Mines | Learned Materials emergency access door positions 1013 | -10/Mines | Found a hidden stash of uninstalled traps 1059 | -10/Mines | Discovered new exit (range 7) 1123 | -10/Mines | Deemed a non-threat by the Exiles lab entrance 1127 | -10/Mines | Entered Exiles 1160 | -10/Exiles | Met 8R-AWN 1177 | -10/Exiles | Met EX-HEX 1207 | -10/Exiles | Met EX-BIN 1220 | -10/Exiles | Aligned with FarCom system 1221 | -10/Exiles | Given EX-Vault access code 1246 | -10/Exiles | Opened EX-Vault 1254 | -10/Exiles | Found Deploy-a-Sentry 1256 | -10/Exiles | Found Deploy-a-Sentry 1258 | -10/Exiles | Found Deploy-a-Sentry 1285 | -10/Exiles | Warned to stay clear of 0b10 Research branches 1295 | -10/Exiles | Exiles lab attacked by MAIN.C 1373 | -10/Exiles | Discovered new exit (range 14) 1388 | -10/Exiles | Left Exiles lab with Deploy-a-Sentry 1388 | -10/Exiles | Entered Mines 1424 | -9/Mines | Assembled infested the area 1429 | -9/Mines | Assisted by a Guerilla fighting off Assembled 1470 | -9/Mines | Discovered new exit (range 15) 1496 | -9/Mines | Entered Materials 1496 | -8/Materials | Evolved 4 slots: Propulsion x1, Utility x2, Weapon x1 2031 | -8/Materials | Build established: Tank 2288 | -8/Materials | Discovered new exit (range 4) 2448 | -8/Materials | DAS Turret deployed 2494 | -8/Materials | Learned Factory emergency access door positions 2572 | -8/Materials | Learned Factory emergency access door positions 2602 | -8/Materials | Learned 4 Lower Caves zone layouts 2604 | -8/Materials | Identified exit to Factory 2605 | -8/Materials | Learned 4 Lower Caves zone layouts 2652 | -8/Materials | Learned location of 3 exits from Factory 2757 | -8/Materials | Identified exit to Garrison 2762 | -8/Materials | Entered Garrison 2799 | -8/Garrison | Installed Relay Interface Framework 2817 | -8/Garrison | Triggered checkpoint 2971 | -8/Garrison | Discovered new exit (range 14) 2993 | -8/Garrison | Entered Materials 3944 | -8/Materials | Learned Factory stockpile data 3968 | -8/Materials | Discovered exit to Factory (range 12) 4073 | -8/Materials | Learned Storage security intel 4165 | -8/Materials | Learned Storage stockpile data 4283 | -8/Materials | Learned 4 Lower Caves zone layouts 4307 | -8/Materials | Entered Factory 4307 | -7/Factory | Evolved 2 slots: Propulsion x1, Utility x1 4308 | -7/Factory | Identified exit to Factory 4309 | -7/Factory | Identified exit to Lower Caves 5047 | -7/Factory | Lost 3 parts (2u1w) 5579 | -7/Factory | Build established: Scavenger-Skirmisher 6451 | -7/Factory | Garrison activated, responded to threat 6923 | -7/Factory | Discovered exit to Factory (range 10) 7401 | -7/Factory | Entered another Factory area 7401 | -6/Factory | Evolved 2 slots: Power x1, Weapon x1 7699 | -6/Factory | Build established: Skirmisher 7950 | -6/Factory | Discovered new exit (range 8) 8178 | -6/Factory | Entered Lower Caves 8179 | -6/Lower Caves | Identified exit to Lower Caves 8299 | -6/Lower Caves | Encountered a Warlord checkpoint 8438 | -6/Lower Caves | Learned Factory trap positions 8531 | -6/Lower Caves | Build established: Mutant 9033 | -6/Lower Caves | Build established: Tank 9133 | -6/Lower Caves | Attracted the attention of an 0b10 outpost 9177 | -6/Lower Caves | Destroyed 10 combat bots 9289 | -6/Lower Caves | Entered another Lower Caves area 9310 | -6/Lower Caves | Learned 4 Factory zone layouts 9580 | -6/Lower Caves | Spotted B-75 Beast 9773 | -6/Lower Caves | Destroyed B-75 Beast 9795 | -6/Lower Caves | Lost 3 parts (1n1u1w) 9968 | -6/Lower Caves | Discovered new exit (range 12) 9988 | -6/Lower Caves | Entered Data Miner 9988 | -6/Data Miner | Discovered new exit (range 6) 10019 | -6/Data Miner | Met Data Miner 10073 | -6/Data Miner | Received God Mode back door access code from Data Miner 10110 | -6/Data Miner | Entered Proximity Caves 10112 | -5/Proximity Caves | Spotter reported a threat 10358 | -5/Proximity Caves | Attracted the attention of an 0b10 outpost 10392 | -5/Proximity Caves | Spotter reported a threat 10408 | -5/Proximity Caves | Destroyed 8 combat bots 10636 | -5/Proximity Caves | Spotter reported a threat 10704 | -5/Proximity Caves | Build established: Mutant 10755 | -5/Proximity Caves | Spotter reported a threat 10840 | -5/Proximity Caves | Spotter reported a threat 10854 | -5/Proximity Caves | Self-destructed Last Messages --------------- 10787_ Imp. Melee Analysis Suite fries itself beyond repair. 10814_ >JNW0TRUAYMAFO:GPNR|OZBJD 10840_ ALERT: Unidentified potential threat approaching Complex 0b10. 10841_ HV Slug penetrates P-70 Sage. 10841_ P-70 Sage suffers critical hit (Destroy). 10841_ Destroyed Imp. Heat Sink. 10841_ Slug penetrates Wall. 10844_ P-70 Sage resets P-70 Sage, system corruption cleaned. 10848_ HV Slug penetrates P-70 Sage. 10851_ HV Slug penetrates Wall. 10851_ Destroyed Antigrav System. 10851_ P-70 Sage knocked back. 10851_ Cld. Deuterium Engine destroyed. 10851_ Hyp. Gauss Rifle destroyed. 10854_ System corrupted: Energy discharge (-166). 10854_ Hvy. Battle Rifle destroyed. Map ----- +----------------------------------------------------+ | ?????????????????????????????????????????????????? | | ?????????????????????????????????????????????????? | | ?????????????????????????????????????????????????? | | ?????????????????????????????????????????????????? | | ?????????????????????????????????????????????????? | | ?????????????????????????????????????????????????? | | ??????##?????????????????????????????????????????? | | ###### ##????????????????????????????????????????? | | # ## #????????????????????????????????????????? | | ##???????????????????????????????????????? | | ???????????????? ?????????????????????? | | #####????????????? ?????????????????????? | | ## ##???????????? ?????????????????????? | | ##??????????? % ?????????????????????? | | #???????????% ?????????????????????? | | #### #???????????p #?????????????????????? | | ########### #??????????# p#?????????????????????? | | #?????# ## ###???????? #?????????????????????? | | #?????# ! % %"#????????# #?????????????????????? | | #???## "%[ ##???????# n#?????????????????????? | | ???##### #???????# #?????????????????????? | | ##### #???????# #?????????????????????? | | #??????## #?????????????????????? | | ##??????# ;??????????????????????? | | ##??????## #??####????????????????? | | ##?###### @### #????????????????? | | ### #????????????????? | | ##????????????????? | | ####" #?????????????????? | | #?#" #?????????????????? | | " " ##?????????????????? | | ? " "" ### ## #??????????????????? | | """"" ??## ### #??????????????????? | | """"" ???## ## ##??????????????????? | | ???? " ????## #???????????????????? | | ???" ?????## ##???????????????????? | | ???"" "" ??????## ##????????????????????? | | ???""### #???????###### #?????????????????????? | | ???"???# ?????????????# #????????????????????? | | ??????? ?????????????## ##????????????????????? | | ???????? ???????????????####?????????????????????? | | ?????????????????????????????????????????????????? | | ?????????????????????????????????????????????????? | | ?????????????????????????????????????????????????? | | ?????????????????????????????????????????????????? | | ?????????????????????????????????????????????????? | | ?????????????????????????????????????????????????? | | ?????????????????????????????????????????????????? | | ?????????????????????????????????????????????????? | | ?????????????????????????????????????????????????? | +----------------------------------------------------+ Best States ------------- Heat Dissipation 53 Energy Generation 31 Energy Capacity 870 Matter Stores 450 Matter Capacity 600 Sight Range 16 Terrain Scan Density 10 Armor Coverage 450 Resistance: KI 30 Evasion (%) 44 Core Analysis 6 Recoil Reduction 4 Offensive Hacking 10 Defensive Hacking 10 Item Schematics ----------------- System Restoration Module | -8/Materials | Scanalyzed Combat Drone Bay | -6/Data Miner | Free Lgt. Regenerative Plating | -6/Data Miner | Free Cld. Gravmag System | -6/Data Miner | Free Imp. Energy Well | -6/Data Miner | Free Hvy. Gatling Laser | -6/Data Miner | Free Imp. Linear Gravjet | -6/Data Miner | Free Imp. Armor Integrity Analyzer | -6/Data Miner | Free Hvy. Gauss Cannon | -6/Data Miner | Free Arm. Heavy Treads | -6/Data Miner | Free Robot Schematics ------------------ G-50 Soldier | -6/Data Miner | Free M-22 Extractor | -6/Data Miner | Free B-48 Gladiator | -6/Data Miner | Free R-10 Processor | -6/Data Miner | Free A-27 Freighter | -6/Data Miner | Free M-36 Artificer | -6/Data Miner | Free Fabricated ------------ Nothing Alien Tech Used ----------------- None Achievements -------------- None Challenges ------------ None Game ------ Seed TachyonGhostRigger Manual? 0 Play Time 03:27:33 Cumulative 50.4 hours Start 2025.02.28 @ 15:46:51 End 2025.03.01 @ 14:53:58 Sessions 1 Manual Loads 0 Difficulty Rogue Special Mode None Game No. 40 Rogue 40 Adventurer 0 Explorer 0 Win Type - Total 0 Types 0/0/0/0/0/0/0/0/0 Lore% 12 Gallery% 33 Achievement% 29 Wizard Run 0 Options --------- Layout 1 ASCII 0 Keyboard 0 Movement Mouse Keybinds 0 Fullscreen 1 Font 24/Smallcaps Map View 50x35 Zoom Use 0% Tactical HUD 1 Map Filters NONE Filters NONE Steam 0 RUN: 962e004b-2c99-4198-981d-12213d65182a